[Event "Hungarian Youth-ch U12 2022"]
[Site "Eger"]
[Date "2022.07.27"]
[Round "5.7"]
[White "Molnar, Dalma Reka"]
[Black "Kiss, Inez"]
[Result "0-1"]
[ECO "C14"]
[WhiteElo "1521"]
[BlackElo "1397"]
[Annotator "NA RC COMBH"]
[PlyCount "46"]
[EventDate "2022.07.21"]
[EventType "tourn"]
[EventCountry "HUN"]
[SourceTitle "playchess.com"]
[Source "ChessBase"]
[SourceQuality "1"]
[TimeControl "40/5400+30:1800+30"]

1. e4 {[%emt 0:00:34]} e6 {[%emt 0:00:32]} 2. d4 {[%emt 0:01:01]} d5 {[%emt 0:00:05]} 3. Nc3 {[%emt 0:00:19]} Nf6 {[%emt 0:01:14]} 4. Bg5 {[%emt 0:04:56]} Be7 {[%emt 0:02:34]} 5. e5 {[%emt 0:01:26]} Nfd7 {[%emt 0:00:46]} 6. Bxe7 {[%emt 0:00:26]} Qxe7 {[%emt 0:00:11]} 7. f4 {[%emt 0:02:17]} O-O {[%emt 0:02:05]} 8. Nf3 {[%emt 0:01:31]} c5 {[%emt 0:01:25]} 9. Nb5 {[%emt 0:01:14]} Nc6 {[%emt 0:04:06]} 10. Nd6 {[%emt 0:04:28]} cxd4 {[%emt 0:04:16]} 11. Nxd4 {[%emt 0:03:50]} f6 {[%emt 0:02:52]} 12. Nxc8 {[%emt 0:06:26]} Raxc8 {[%emt 0:00:45]} 13. Nxc6 {[%emt 0:06:28]} Rxc6 {[%emt 0:00:41]} 14. c3 {[%emt 0:09:33]} fxe5 {[%emt 0:02:27]} 15. fxe5 {[%emt 0:05:34]} Qh4+ {[%emt 0:00:48]} 16. g3 {[%emt 0:00:39]} Qe4+ {[%emt 0:00:31]} 17. Qe2 {[%emt 0:03:09]} Qxh1 {[%emt 0:01:06]} 18. Kd2 {[%emt 0:02:14]} Qf3 {[%emt 0:01:33]} 19. Bh3 {[%emt 0:00:56]} Qxe2+ {[%emt 0:00:30]} 20. Kxe2 {[%emt 0:00:17]} Nxe5 {[%emt 0:00:36]} 21. Rb1 {[%emt 0:00:50]} Nc4 {[%emt 0:00:36]} 22. Kd3 {[%emt 0:00:20]} Rf2 {[%emt 0:01:07]} 23. Re1 {[%emt 0:00:59]} Rd2# {[%emt 0:00:25]} 0-1

[Event "Hungarian Youth-ch U12 2022"]
[Site "Eger"]
[Date "2022.07.27"]
[Round "5.8"]
[White "Hangyal, Dora"]
[Black "Brieber, Dorottya"]
[Result "1-0"]
[ECO "B01"]
[WhiteElo "1244"]
[BlackElo "1242"]
[Annotator "NA RC COMBH"]
[PlyCount "63"]
[EventDate "2022.07.21"]
[EventType "tourn"]
[EventCountry "HUN"]
[SourceTitle "playchess.com"]
[Source "ChessBase"]
[SourceQuality "1"]
[TimeControl "40/5400+30:1800+30"]

1. e4 {[%emt 0:00:31]} d5 {[%emt 0:00:37]} 2. exd5 {[%emt 0:00:05]} Nf6 {[%emt 0:00:08]} 3. Nf3 {[%emt 0:00:09]} Nxd5 {[%emt 0:00:16]} 4. c4 {[%emt 0:01:13]} Nf6 {[%emt 0:00:41]} 5. h3 {[%emt 0:01:14]} Nc6 {[%emt 0:00:27]} 6. Nc3 {[%emt 0:01:39]} Bf5 {[%emt 0:00:39]} 7. d3 {[%emt 0:02:03]} e5 {[%emt 0:01:05]} 8. Bg5 {[%emt 0:00:59]} Be7 {[%emt 0:00:34]} 9. g4 {[%emt 0:04:57]} Be6 {[%emt 0:00:36]} 10. Bg2 {[%emt 0:00:56]} h6 {[%emt 0:00:17]} 11. Bh4 {[%emt 0:00:22]} g5 {[%emt 0:00:15]} 12. Bg3 {[%emt 0:00:20]} Bd6 {[%emt 0:00:44]} 13. Qe2 {[%emt 0:00:32]} Nd7 {[%emt 0:01:10]} 14. O-O {[%emt 0:00:38]} f5 {[%emt 0:02:06]} 15. gxf5 {[%emt 0:01:46]} Bxf5 {[%emt 0:00:37]} 16. d4 {[%emt 0:00:37]} Qf6 {[%emt 0:01:17]} 17. Rfe1 {[%emt 0:00:31]} Qf7 {[%emt 0:02:14]} 18. dxe5 {[%emt 0:02:05]} Bc5 {[%emt 0:05:42]} 19. e6 {[%emt 0:00:51]} Qe7 {[%emt 0:01:11]} 20. exd7+ {[%emt 0:00:12]} Bxd7 {[%emt 0:00:41]} 21. Qc2 {[%emt 0:00:16]} Be6 {[%emt 0:00:39]} 22. Qg6+ {[%emt 0:01:00]} Kd8 {[%emt 0:01:11]} 23. Rxe6 {[%emt 0:00:57]} Qf8 {[%emt 0:02:01]} 24. Rd1+ {[%emt 0:01:01]} Kc8 {[%emt 0:02:45]} 25. Rf6 {[%emt 0:01:00]} Qg8 {[%emt 0:02:04]} 26. Qf5+ {[%emt 0:00:31]} Kb8 {[%emt 0:00:39]} 27. Qxc5 {[%emt 0:00:12]} a6 {[%emt 0:00:52]} 28. Rd7 {[%emt 0:00:27]} Qe8 {[%emt 0:02:11]} 29. Rxc7 {[%emt 0:00:21]} Qc8 {[%emt 0:00:41]} 30. Rcxc6+ {[%emt 0:00:12]} Qc7 {[%emt 0:00:20]} 31. Rxc7 {[%emt 0:00:16]} Ra7 {[%emt 0:00:23]} 32. Rc8# {[%emt 0:00:09]} 1-0

[Event "Hungarian Youth-ch U12 2022"]
[Site "Eger"]
[Date "2022.07.27"]
[Round "5.9"]
[White "Balogh, Gerda"]
[Black "Balazs, Szabina Zoe"]
[Result "1-0"]
[ECO "C50"]
[WhiteElo "1531"]
[BlackElo "1437"]
[Annotator "NA RC COMBH"]
[PlyCount "93"]
[EventDate "2022.07.21"]
[EventType "tourn"]
[EventCountry "HUN"]
[SourceTitle "playchess.com"]
[Source "ChessBase"]
[SourceQuality "1"]
[TimeControl "40/5400+30:1800+30"]

1. e4 {[%emt 0:00:32]} e5 {[%emt 0:00:47]} 2. Nf3 {[%emt 0:00:21]} Nc6 {[%emt 0:00:38]} 3. Bc4 {[%emt 0:00:26]} Bc5 {[%emt 0:00:56]} 4. O-O {[%emt 0:00:45]} Nf6 {[%emt 0:00:30]} 5. d4 {[%emt 0:02:09]} Bxd4 {[%emt 0:01:59]} 6. Nxd4 {[%emt 0:00:35]} Nxd4 {[%emt 0:00:22]} 7. f4 {[%emt 0:00:47]} Nc6 {[%emt 0:00:41]} 8. Bxf7+ {[%emt 0:01:11]} Kxf7 {[%emt 0:01:16]} 9. fxe5 {[%emt 0:00:29]} Nxe5 {[%emt 0:00:22]} 10. Qd5+ {[%emt 0:00:29]} Kg6 {[%emt 0:03:29]} 11. Qxe5 {[%emt 0:01:12]} d6 {[%emt 0:00:30]} 12. Qf4 {[%emt 0:07:51]} Re8 {[%emt 0:04:29]} 13. Nd2 {[%emt 0:17:53]} h6 {[%emt 0:06:46]} 14. b3 {[%emt 0:08:06]} Qe7 {[%emt 0:05:29]} 15. Bb2 {[%emt 0:06:06]} Be6 {[%emt 0:10:20]} 16. Rae1 {[%emt 0:09:54]} Nh5 {[%emt 0:09:10]} 17. Qe3 {[%emt 0:01:26]} Qd7 {[%emt 0:01:29]} 18. Qc3 {[%emt 0:06:47]} Kh7 {[%emt 0:08:03]} 19. Nf3 {[%emt 0:02:49]} Qe7 {[%emt 0:04:27]} 20. e5 {[%emt 0:01:16]} d5 {[%emt 0:00:56]} 21. Nd4 {[%emt 0:00:47]} Bg4 {[%emt 0:08:28]} 22. h3 {[%emt 0:02:30]} Bxh3 {[%emt 0:02:27]} 23. Qxh3 {[%emt 0:00:22]} Qg5 {[%emt 0:00:15]} 24. Qf5+ {[%emt 0:01:17]} Qxf5 {[%emt 0:00:36]} 25. Rxf5 {[%emt 0:00:12]} Kg6 {[%emt 0:00:08]} 26. Rf3 {[%emt 0:01:55]} a6 {[%emt 0:00:57]} 27. Ree3 {[%emt 0:01:59]} Kg5 {[%emt 0:01:35]} 28. Bc1 {[%emt 0:00:29]} Kg4 {[%emt 0:01:10]} 29. Nf5 {[%emt 0:01:06]} Re6 {[%emt 0:02:43]} 30. c4 {[%emt 0:00:51]} dxc4 {[%emt 0:00:51]} 31. Re4+ {[%emt 0:00:30]} Nf4 {[%emt 0:00:26]} 32. Rfxf4+ {[%emt 0:00:20]} Kg5 {[%emt 0:00:24]} 33. Rg4+ {[%emt 0:00:37]} Kxf5 {[%emt 0:00:14]} 34. Rgf4+ {[%emt 0:00:50]} Kg6 {[%emt 0:00:23]} 35. Rxc4 {[%emt 0:00:13]} c6 {[%emt 0:02:19]} 36. Bb2 {[%emt 0:00:08]} a5 {[%emt 0:00:50]} 37. Rcd4 {[%emt 0:00:35]} Rae8 {[%emt 0:00:28]} 38. Rd6 {[%emt 0:00:14]} b5 {[%emt 0:01:00]} 39. a4 {[%emt 0:00:46]} h5 {[%emt 0:02:17]} 40. Kh2 {[%emt 0:00:00]} R8e7 {[%emt 0:00:00]} 41. Kh3 {[%emt 0:00:58]} Kh6 {[%emt 0:02:30]} 42. g4 {[%emt 0:00:35]} Kg5 {[%emt 0:00:51]} 43. Rf5+ {[%emt 0:00:22]} Kh6 {[%emt 0:00:37]} 44. Rxh5+ {[%emt 0:00:15]} Kg6 {[%emt 0:00:09]} 45. Kh4 {[%emt 0:00:22]} b4 {[%emt 0:00:50]} 46. Rf5 {[%emt 0:00:55]} c5 {[%emt 0:00:43]} 47. Rf4 1-0

[Event "Hungarian Youth-ch U12 2022"]
[Site "Eger"]
[Date "2022.07.28"]
[Round "6.1"]
[White "Horvath, Andras"]
[Black "Janosi, Bence"]
[Result "0-1"]
[ECO "C04"]
[WhiteElo "2251"]
[BlackElo "1428"]
[Annotator "TA"]
[PlyCount "54"]
[EventDate "2022.07.21"]
[EventType "tourn"]
[EventCountry "HUN"]
[SourceTitle "playchess.com"]
[Source "ChessBase"]
[SourceQuality "1"]
[TimeControl "40/5400+30:1800+30"]

{[%evp 12,54,37,24,93,95,91,106,112,0,0,0,0,0,0,0,6,-11,0,-168,-126,-126,-157,-183,-125,-119,-117,-114,-106,-143,-101,-121,-82,-87,-52,-93,-39,-40,-33,-93,-69,-352,-348,-424,-400]} 1. e4 {[%emt 0:00:40]} e6 {[%emt 0:00:35]} 2. d4 {[%emt 0:00:07]} d5 {[%emt 0:00:07]} 3. Nd2 {[%emt 0:00:07]} Nc6 {[%emt 0:00:10]} 4. Ngf3 {[%emt 0:02:17]} Nf6 {[%emt 0:00:25]} 5. e5 {[%emt 0:01:57]} Nd7 {[%emt 0:00:31]} 6. c3 {[%emt 0:01:55]} f6 {[%emt 0:00:46]} 7. exf6 {[%emt 0:05:56]} Nxf6 {[%emt 0:01:16] C04: French Tarrasch: 3...Nc6.} (7... Qxf6 $11 {remains equal.} 8. Nb3 Bd6) 8. Bd3 $16 {[%emt 0:02:49]} Bd6 {[%emt 0:00:40]} 9. O-O {[%emt 0:01:08]} O-O {[%emt 0:00:48] White is better.} 10. Nb3 {[%emt 0:01:23]} (10. Re1 $16) 10... e5 $11 {[%emt 0:01:33]} 11. dxe5 {[%emt 0:01:39]} Nxe5 {[%emt 0:01:39]} 12. Nxe5 {[%emt 0:01:46]} Bxe5 {[%emt 0:00:48]} 13. Bg5 {[%emt 0:06:11]} c6 {[%emt 0:08:21] [#]} 14. Qc2 $146 {[%emt 0:02:44][%cal Od3h7]} ({Predecessor:} 14. Qd2 Bc7 15. Bh4 {½-½ (15) Kastner,P (2180)-Schmidt,H (2102) Germany 2001}) 14... Bxh2+ {[%emt 0:02:56]} 15. Kxh2 $2 {[%emt 0:08:26]} (15. Kh1 $1 $11 {and White stays safe.}) 15... Ng4+ $19 {[%emt 0:00:07][%mdl 64] Discovered Attack} 16. Kg1 {[%emt 0:02:27]} Qxg5 {[%emt 0:00:23]} 17. Be2 {[%emt 0:15:59] [#]} ({Don't blunder} 17. Bxh7+ $2 Kh8 18. Qd3 Ne5 $19) 17... Ne5 {[%emt 0:05:06]} (17... Rf6 $1 $19 {[%cal Og4e3] Threatens to win with ...Ne3!} 18. Qd2 Qh5 19. Bxg4 Bxg4) 18. Qd2 $17 {[%emt 0:12:50]} Qg6 {[%emt 0:03:20] ...Bh3 is the strong threat. Black is more active.} 19. Qe3 {[%emt 0:02:43] Inhibits Bh3.} Re8 $40 {[%emt 0:05:36][%mdl 128] Black wants a kill.} 20. Qf4 {[%emt 0:08:57] Inhibits Nc4.} Nf7 {[%emt 0:03:16][%cal Be5f7,Bf7g5,Bg5e4][%mdl 32]} 21. Rfe1 {[%emt 0:02:07][%cal Oe2h5] [#] Strongly threatening Bh5!} Ng5 {[%emt 0:01:53] Hoping for ...Nh3+.} 22. Qg3 {[%emt 0:03:20] Inhibits Nh3+.} Bf5 {[%emt 0:03:28]} 23. Nd4 {[%emt 0:01:53]} Rf8 {[%emt 0:02:22]} (23... Be4 $17 24. Bg4 h5) 24. Nxf5 $15 {[%emt 0:03:09]} Qxf5 {[%emt 0:00:56]} (24... Rxf5 $2 25. Bd3 Raf8 26. Bxf5 Rxf5 27. Re3 $16) 25. Bg4 {[%emt 0:01:00]} (25. Bd3 $15 Ne4 26. Bxe4 dxe4 27. Rad1) 25... Qf6 {[%emt 0:01:16]} 26. Re5 $2 {[%emt 0:01:13][%mdl 8192]} (26. f3 $15) 26... Ne4 $19 {[%emt 0:00:56]} 27. Be6+ {[%emt 0:01:08]} Kh8 {Weighted Error Value: White=0.49/Black=0.22 (precise)} 0-1

[Event "Hungarian Youth-ch U12 2022"]
[Site "Eger"]
[Date "2022.07.28"]
[Round "6.2"]
[White "Kovacs, Kristof"]
[Black "Lehocz, Jozsef Jr."]
[Result "0-1"]
[ECO "A45"]
[WhiteElo "1812"]
[BlackElo "1919"]
[Annotator "TA"]
[PlyCount "60"]
[EventDate "2022.07.21"]
[EventType "tourn"]
[EventCountry "HUN"]
[SourceTitle "playchess.com"]
[Source "ChessBase"]
[SourceQuality "1"]
[TimeControl "40/5400+30:1800+30"]

{[%evp 11,60,-3,12,-4,8,-11,8,-52,-23,-62,-23,-27,-14,-11,-12,-29,51,0,0,0,0,0,0,0,0,0,107,97,94,118,122,111,106,32,49,-195,-176,-217,-218,-233,-73,-365,-300,-557,-515,-708,-652,-656,-646,-5233,-5209]} 1. d4 {[%emt 0:00:33]} Nf6 {[%emt 0:01:07]} 2. g3 {[%emt 0:00:33]} e6 {[%emt 0:02:53]} 3. Bg2 {[%emt 0:00:33]} c5 {[%emt 0:02:39]} 4. c3 {[%emt 0:01:14]} d5 {[%emt 0:00:30]} 5. Nf3 {[%emt 0:01:10]} b5 {[%emt 0:03:36]} 6. O-O {[%emt 0:02:22]} Bb7 {[%emt 0:00:37]} 7. Nbd2 {[%emt 0:03:22][%cal Oe2e4] A46: 1 d4 Nf6 2 Nf3 e6: Torre, London and Colle Systems.} Nbd7 {[%emt 0:01:45]} 8. Ne5 {[%emt 0:03:04]} Bd6 {[%emt 0:07:51] [#]} 9. f4 $146 {[%emt 0:03:27]} (9. Nxd7 $11 Qxd7 10. Nb3) ({Predecessor:} 9. Ndf3 Qc7 10. Nxd7 Nxd7 11. Re1 Nf6 12. dxc5 Qxc5 13. Qd4 Qxd4 14. Nxd4 a6 15. Bg5 {½-½ (23) Maurer,R (1867)-Kretschmer,T (1838) Saarlouis Steinrausch 2005}) 9... Qc7 {[%emt 0:07:26]} 10. Ndf3 {[%emt 0:02:00]} Ne4 {[%emt 0:04:34]} 11. a4 {[%emt 0:04:38][%cal Ba2a4,Ba4a5,Ba5a6][%mdl 32]} b4 {[%emt 0:02:37]} 12. cxb4 {[%emt 0:00:35]} cxb4 {[%emt 0:01:12]} 13. Be3 {[%emt 0:00:41]} Ndf6 {[%emt 0:13:19]} (13... O-O $11) 14. Qd3 {[%emt 0:04:56]} (14. a5 $1 $14 O-O 15. a6) 14... O-O $11 {[%emt 0:01:30]} 15. a5 {[%emt 0:03:27]} Rac8 {[%emt 0:07:19]} 16. a6 {[%emt 0:01:11]} Ba8 {[%emt 0:04:28]} 17. Rfc1 {[%emt 0:00:27]} Qb6 {[%emt 0:00:59]} 18. g4 {[%emt 0:01:20] aiming for g5.} Bc6 {[%emt 0:04:39]} (18... Rxc1+ $11 19. Rxc1 Rd8) 19. Nxc6 $16 {[%emt 0:02:06]} Rxc6 {[%emt 0:00:04]} 20. Ne5 {[%emt 0:00:19]} Rxc1+ {[%emt 0:01:23]} 21. Rxc1 {[%emt 0:00:40] Strongly threatening g5.} Qa5 {[%emt 0:06:57]} 22. h3 {[%emt 0:02:26]} (22. g5 $16) 22... Qa2 $14 {[%emt 0:01:49]} 23. Nc6 $2 {[%emt 0:03:47] [#]} (23. g5 $14 {keeps the upper hand.} Nh5 24. Bxe4 dxe4 25. Qxe4) 23... Qxb2 $19 {[%emt 0:02:32] Threatens to win with ...Nc3.} 24. Nxa7 {[%emt 0:00:49]} Nc3 {[%emt 0:02:50] Pair of Knights!} 25. Bf3 {[%emt 0:02:14]} Qa2 $2 {[%emt 0:01:52]} (25... Qa3 $19 {is more deadly. Hoping for ...Nfe4.} 26. Kg2 Ra8) 26. Nc6 $2 {[%emt 0:05:58][%mdl 8192]} (26. Nb5 $17 {was the only defense.} Nxb5 27. Qxb5) 26... Rc8 {[%emt 0:00:42]} 27. Na7 {[%emt 0:09:58] [#]} (27. Ne5 {was called for.}) 27... Rc4 {[%emt 0:03:11] Black is clearly winning.} 28. Bd2 {[%emt 0:03:33]} Qxa6 {[%emt 0:01:30]} 29. Bxc3 {[%emt 0:00:29]} bxc3 {[%emt 0:00:36]} 30. Rxc3 {[%emt 0:00:07]} Qa1+ {[%emt 0:00:29] Weighted Error Value: White=0.95/Black=0.30} 0-1

[Event "Hungarian Youth-ch U12 2022"]
[Site "Eger"]
[Date "2022.07.28"]
[Round "6.3"]
[White "Onodi, Miklos"]
[Black "Horvath, Matyas Sandor"]
[Result "1-0"]
[ECO "A49"]
[WhiteElo "1901"]
[BlackElo "1431"]
[Annotator "TA"]
[PlyCount "99"]
[EventDate "2022.07.21"]
[EventType "tourn"]
[EventCountry "HUN"]
[SourceTitle "playchess.com"]
[Source "ChessBase"]
[SourceQuality "1"]
[TimeControl "40/5400+30:1800+30"]

{[%evp 19,99,10,0,-19,59,62,254,241,334,332,328,299,534,453,538,507,556,572,586,499,671,669,665,667,641,589,550,479,569,571,680,541,541,541,539,532,726,670,730,727,731,716,754,739,755,633,749,742,842,824,822,776,929,950,949,941,922,924,902,854,29984,29985,29985,29985,29987,29988,29988,29989,29989,29990,29990,29991,29993,29994,29994,29995,29995,29996,29996,29997,29998,29999]} 1. d4 {[%emt 0:00:33]} Nf6 {[%emt 0:00:37]} 2. Nf3 {[%emt 0:00:04]} g6 {[%emt 0:00:11]} 3. g3 {[%emt 0:00:03]} Bg7 {[%emt 0:00:08]} 4. Bg2 {[%emt 0:00:03]} O-O {[%emt 0:00:16]} 5. O-O {[%emt 0:00:02]} c6 {[%emt 0:00:18]} 6. b3 {[%emt 0:00:40]} d5 {[%emt 0:00:30]} 7. c4 {[%emt 0:00:17]} dxc4 {[%emt 0:01:26]} 8. bxc4 {[%emt 0:00:37]} c5 {[%emt 0:00:38]} 9. Bb2 {[%emt 0:00:33]} cxd4 {[%emt 0:00:54]} 10. Nxd4 {[%emt 0:00:15][%cal Bf3d4,Bd4b5,Bb5c7][%mdl 32]} Qb6 {[%emt 0:01:08]} 11. Nb5 {[%emt 0:12:20] [#] A49: 1 d4 Nf6 2 Nf3 g6 3 g3: Anti-King's Indian systems.} Nfd7 $146 {[%emt 0:08:14]} (11... a6 $11 12. Bd4 Qd8) ({Predecessor:} 11... Rd8 12. Qb3 a6 13. N5c3 Qxb3 14. axb3 Nc6 15. Na4 Bf5 16. Nb6 Rab8 17. Bxc6 bxc6 18. Rxa6 Nd7 19. Nxd7 Rxd7 20. Bxg7 Kxg7 {½-½ (73) Muse,D (2418)-Brener,I (2321) Playchess.com INT 2005}) 12. N1c3 $14 {[%emt 0:02:28]} Nf6 {[%emt 0:03:39] [#]} (12... Qd8 $14) 13. Na4 $1 $18 {[%emt 0:01:33] White has a decisive advantage.} Qd8 {[%emt 0:01:56]} 14. Qxd8 {[%emt 0:00:48]} Rxd8 {[%emt 0:00:07]} 15. Nc7 {[%emt 0:00:15]} Na6 $2 {[%emt 0:01:24]} (15... Bd7 16. Nb6 (16. Nxa8 Bxa4 17. Nc7 Rd7 $18) 16... axb6) 16. Nxa6 {[%emt 0:00:38]} Rd2 {[%emt 0:03:10]} 17. Bc3 {[%emt 0:01:13]} Rc2 {[%emt 0:02:01]} 18. Rfc1 {[%emt 0:07:05]} Rxe2 {[%emt 0:02:20]} 19. Bf3 {[%emt 0:00:42]} Re6 {[%emt 0:01:08]} 20. Nc7 {[%emt 0:00:23][%csl LRa8,LRe6]} Rb8 {[%emt 0:00:46]} 21. Nxe6 {[%emt 0:00:18]} Bxe6 {[%emt 0:00:10]} 22. Rab1 {[%emt 0:00:25]} b6 {[%emt 0:01:23]} 23. Bd5 {[%emt 0:00:52]} Bh6 {[%emt 0:01:46]} 24. Bxf6 {[%emt 0:03:37]} Bxd5 {[%emt 0:02:48]} 25. Be5 {[%emt 0:00:45]} Rc8 {[%emt 0:00:51]} 26. Bf4 {[%emt 0:00:42]} Bxf4 {[%emt 0:00:59]} 27. gxf4 {[%emt 0:00:04]} Bxc4 {[%emt 0:00:37]} 28. Rc3 {[%emt 0:01:11]} Be6 {[%emt 0:01:25]} 29. Rxc8+ {[%emt 0:00:05]} Bxc8 {[%emt 0:00:08]} 30. Rd1 {[%emt 0:00:42] Rd8+ is the strong threat.} Be6 {[%emt 0:00:43]} 31. a3 {[%emt 0:00:27]} Bb3 {[%emt 0:00:46]} 32. Rd8+ {[%emt 0:00:05]} Kg7 {[%emt 0:00:57]} 33. Nb2 {[%emt 0:00:26]} e6 {[%emt 0:01:38]} 34. Ra8 {[%emt 0:00:10]} a5 {[%emt 0:02:01]} 35. Ra6 {[%emt 0:00:12]} Bd5 {[%emt 0:00:33]} 36. Rxb6 {[%emt 0:00:09]} Kf6 {[%emt 0:00:17]} 37. Rb5 {[%emt 0:00:07]} Kf5 38. Rxa5 Kxf4 {[%emt 0:01:36]} 39. a4 {[%emt 0:01:18][%cal Oa5d5] Black must now prevent Rxd5!} f5 {[%emt 0:00:26] [#]} 40. Rxd5 $1 {[%emt 0:00:05] White mates.} exd5 {[%emt 0:00:35] KN-KP} 41. a5 {[%emt 0:00:06]} d4 {[%emt 0:00:29]} 42. a6 {[%emt 0:00:05]} Ke4 {[%emt 0:00:31]} 43. a7 {[%emt 0:00:05]} d3 {[%emt 0:00:29]} 44. a8=Q+ {[%emt 0:00:09]} Kd4 {[%emt 0:00:15]} 45. Qd8+ {[%emt 0:00:12]} Kc3 {[%emt 0:00:20]} 46. Qxd3+ {[%emt 0:00:04]} Kxb2 {[%emt 0:00:17]} 47. Kf1 {[%emt 0:00:03]} Kc1 {[%emt 0:00:20]} 48. Ke2 {[%emt 0:00:21]} Kb2 {[%emt 0:00:14]} 49. Kd2 {[%emt 0:00:03]} Ka1 {[%emt 0:00:26]} 50. Kc2 {[%emt 0:00:05] White took control after the opening.  Weighted Error Value: White=0.19 (very precise) /Black=0.93} 1-0

[Event "Hungarian Youth-ch U12 2022"]
[Site "Eger"]
[Date "2022.07.28"]
[Round "6.4"]
[White "Juhasz, Edmond"]
[Black "Karacsonyi, Bank"]
[Result "0-1"]
[ECO "C50"]
[WhiteElo "1510"]
[BlackElo "1791"]
[Annotator "NA RC COMBH"]
[PlyCount "132"]
[EventDate "2022.07.21"]
[EventType "tourn"]
[EventCountry "HUN"]
[SourceTitle "playchess.com"]
[Source "ChessBase"]
[SourceQuality "1"]
[TimeControl "40/5400+30:1800+30"]

1. e4 {[%emt 0:00:33]} e5 {[%emt 0:00:34]} 2. Nf3 {[%emt 0:00:10]} Nc6 {[%emt 0:00:05]} 3. Bc4 {[%emt 0:00:13]} Bc5 {[%emt 0:00:05]} 4. Nc3 {[%emt 0:00:33]} Nf6 {[%emt 0:00:10]} 5. d3 {[%emt 0:00:35]} d6 {[%emt 0:00:06]} 6. h3 {[%emt 0:00:34]} a6 {[%emt 0:09:22]} 7. a3 {[%emt 0:05:57]} h6 {[%emt 0:00:21]} 8. Qe2 {[%emt 0:03:15]} Be6 {[%emt 0:02:57]} 9. Bxe6 {[%emt 0:01:20]} fxe6 {[%emt 0:00:06]} 10. Be3 {[%emt 0:00:38]} Nd4 {[%emt 0:01:31]} 11. Qd1 {[%emt 0:04:17]} Qd7 {[%emt 0:03:07]} 12. Bxd4 {[%emt 0:01:46]} exd4 {[%emt 0:00:45]} 13. Ne2 {[%emt 0:00:18]} e5 {[%emt 0:00:35]} 14. Qd2 {[%emt 0:01:19]} O-O-O {[%emt 0:01:29]} 15. Qa5 {[%emt 0:06:01]} Rhe8 {[%emt 0:02:31]} 16. O-O-O {[%emt 0:03:00]} Bb6 {[%emt 0:00:59]} 17. Qb4 {[%emt 0:02:05]} d5 {[%emt 0:00:40]} 18. Ng3 {[%emt 0:03:28]} Qe6 {[%emt 0:01:25]} 19. Qb3 {[%emt 0:05:51]} dxe4 {[%emt 0:02:17]} 20. Qxe6+ {[%emt 0:00:20]} Rxe6 {[%emt 0:00:03]} 21. Nxe4 {[%emt 0:00:46]} Nxe4 {[%emt 0:00:24]} 22. dxe4 {[%emt 0:00:14]} g5 {[%emt 0:00:35]} 23. Rd3 {[%emt 0:04:04]} c5 {[%emt 0:00:33]} 24. Nd2 {[%emt 0:03:26]} Bc7 {[%emt 0:01:38]} 25. c4 {[%emt 0:05:44]} dxc3 {[%emt 0:02:34]} 26. Rxd8+ {[%emt 0:01:01]} Bxd8 {[%emt 0:00:21]} 27. bxc3 {[%emt 0:00:16]} b5 {[%emt 0:00:18]} 28. Kc2 {[%emt 0:00:49]} c4 {[%emt 0:00:37]} 29. Rd1 {[%emt 0:02:37]} Bb6 {[%emt 0:01:31]} 30. f3 {[%emt 0:00:56]} Bc5 {[%emt 0:02:12]} 31. Nb1 {[%emt 0:04:11]} Kc7 {[%emt 0:00:27]} 32. Rd5 {[%emt 0:01:20]} Bd6 {[%emt 0:00:04]} 33. Kb2 {[%emt 0:05:05]} h5 {[%emt 0:01:35]} 34. Rd1 {[%emt 0:03:05]} g4 {[%emt 0:00:44]} 35. hxg4 {[%emt 0:03:33]} hxg4 {[%emt 0:00:24]} 36. Nd2 {[%emt 0:06:13]} Rg6 {[%emt 0:01:53]} 37. Nb1 {[%emt 0:06:28]} gxf3 {[%emt 0:00:42]} 38. gxf3 {[%emt 0:00:09]} Rg2+ {[%emt 0:00:47]} 39. Rd2 {[%emt 0:00:36]} Rg1 {[%emt 0:00:28]} 40. Rf2 {[%emt 0:00:00]} Bc5 {[%emt 0:00:00]} 41. Rh2 {[%emt 0:01:27]} Rg3 {[%emt 0:01:35]} 42. Rh7+ {[%emt 0:00:44]} Kb6 {[%emt 0:00:08]} 43. Rh5 {[%emt 0:01:50]} Rg2+ {[%emt 0:03:57]} 44. Ka1 {[%emt 0:01:57]} Bd6 {[%emt 0:00:27]} 45. Rh6 {[%emt 0:02:44]} Kc5 {[%emt 0:00:41]} 46. Rh5 {[%emt 0:01:09]} Rf2 {[%emt 0:00:15]} 47. Rf5 {[%emt 0:00:24]} Kc6 {[%emt 0:06:34]} 48. Rf7 {[%emt 0:01:12]} a5 {[%emt 0:00:44]} 49. Rf6 {[%emt 0:01:42]} Kc5 {[%emt 0:01:45]} 50. Rf7 {[%emt 0:01:19]} Kc6 {[%emt 0:07:48]} 51. Rf6 {[%emt 0:05:02]} Kd7 {[%emt 0:00:55]} 52. Rf7+ {[%emt 0:01:32]} Be7 {[%emt 0:00:32]} 53. Rf5 {[%emt 0:05:36]} Ke6 {[%emt 0:00:35]} 54. Rh5 {[%emt 0:01:09]} Rxf3 {[%emt 0:01:02]} 55. Rh6+ {[%emt 0:00:40]} Rf6 {[%emt 0:00:14]} 56. Rxf6+ {[%emt 0:03:17]} Kxf6 {[%emt 0:00:18]} 57. Kb2 {[%emt 0:00:08]} Kg5 {[%emt 0:00:14]} 58. Nd2 {[%emt 0:00:12]} Kf4 {[%emt 0:00:01]} 59. a4 {[%emt 0:00:32]} bxa4 {[%emt 0:03:38]} 60. Nxc4 {[%emt 0:00:55]} Kxe4 {[%emt 0:01:04]} 61. Nxa5 {[%emt 0:01:13]} Kd5 {[%emt 0:01:46]} 62. c4+ {[%emt 0:01:39]} Kd6 {[%emt 0:31:24]} 63. c5+ {[%emt 0:09:45]} Kxc5 {[%emt 0:00:57]} 64. Kc3 {[%emt 0:00:30]} e4 {[%emt 0:00:11]} 65. Kc2 {[%emt 0:01:19]} Kb5 {[%emt 0:00:07]} 66. Nb7 {[%emt 0:00:11]} Kb6 {[%emt 0:00:05]} 0-1